Cogmind - Beta 13 @@@ ROGUE MODE // 2024.06.16 @ 12:57:29 Player: QXander Result: Destroyed by G-47 Trooper with Particle Gun Performance ------------- Evolutions (2) 1000 Regions Visited (7) 1400 Robots Destroyed (51) 255 Value Destroyed (1384) 1384 Prototype IDs (0) 0 Alien Tech Used (0) 0 Bonus (184) 184 TOTAL SCORE: 4223 Bonus ------- Follower Combat Kills 165 Entered Garrisons 200 Friendly Fire -181 Cogmind --------- Core Integrity 0/550 Matter 235/300 Energy 52/100 System Corruption 1% Temperature Warm (185) Movement Core (100) Ox1 Location -8/Garrison Parts ------- > --- POWER (1) -------- (None) > --- PROPULSION (4) --- (None) > --- UTILITY (3) ------ Advanced Weight Redist. System Medium Reactive Plating Makeshift Hacking Suite > --- WEAPON (3) ------- (None) > --- INVENTORY (5) ---- Improved Signal Interpreter Reaction Control System Layered Light Armor Plating Beam Rifle Peak State ------------ > --- POWER ------------ Light Nuclear Core > --- PROPULSION ------- Aluminum Leg Aluminum Leg Carbon-fiber Leg Carbon-fiber Leg > --- UTILITY ---------- Medium Storage Unit Layered Light Armor Plating Makeshift Hacking Suite > --- WEAPON ----------- Particle Cannon Assault Rifle Makeshift Spear > --- INVENTORY -------- Ion Engine Aluminum Leg Aluminum Leg Advanced Weight Redist. System Improved Signal Interpreter Melee Analysis Suite Reaction Control System Layered Light Armor Plating Assault Rifle [Rating: 29] Favorites ----------- Power Ion Engine Engine Ion Engine Power Core Light Nuclear Core Propulsion Aluminum Leg Treads Light Treads Leg Aluminum Leg Utility Medium Storage Unit Device Heat Sink Storage Medium Storage Unit Processor Advanced Visual Processing Unit Hackware Makeshift Hacking Suite Protection Light Armor Plating Weapon Assault Rifle Energy Gun Small Laser Energy Cannon Particle Cannon Ballistic Gun Assault Rifle Launcher Missile Launcher Special Weapon Mining Laser Piercing Weapon Makeshift Spear Build | -11 -10 -9 -9 -9 -8 -8 -8 ------- Run | Yrd Mat Mat Min Exi Min Mat Gar Slots Evolved 4 | . . 2 . . . 2 . Power . | . . . . . . . . Propulsion 2 | . . 2 . . . . . Utility 1 | . . . . . . 1 . Weapon 1 | . . . . . . 1 . Parts Attached 76 | 8 8 25 3 3 . 17 12 Power 11 | 2 . 4 . . . 3 2 Engine 9 | 2 . 4 . . . 2 1 Core 2 | . . . . . . 1 1 Reactor . | . . . . . . . . Propulsion 25 | 3 3 7 2 . . 8 2 Treads 1 | 1 . . . . . . . Leg 24 | 2 3 7 2 . . 8 2 Wheel . | . . . . . . . . Hover . | . . . . . . . . Flight . | . . . . . . . . Utility 15 | 1 2 3 1 1 . 2 5 Device 2 | . 1 . . . . . 1 Storage 2 | 1 1 . . . . . . Processor 4 | . . 1 1 . . 1 1 Hackware 1 | . . . . 1 . . . Protection 6 | . . 2 . . . 1 3 Artifact . | . . . . . . . . Weapon 25 | 2 3 11 . 2 . 4 3 Energy Gun 5 | 1 . 3 . . . . 1 Energy Cannon 7 | . 2 5 . . . . . Ballistic Gun 8 | 1 1 3 . . . 2 1 Ballistic Cannon . | . . . . . . . . Launcher 2 | . . . . 1 . 1 . Special Weapon 1 | . . . . 1 . . . Impact Weapon . | . . . . . . . . Slashing Weapon . | . . . . . . . . Piercing Weapon 2 | . . . . . . 1 1 Special Melee Weapon . | . . . . . . . . Unidentified Prototypes . | . . . . . . . . Parts Lost 18 | . . 2 1 . . . 15 Power 3 | . . . . . . . 3 Propulsion 7 | . . 1 . . . . 6 Utility 3 | . . . 1 . . . 2 Weapon 5 | . . 1 . . . . 4 Highest Loss Streak 14 | . . 1 1 . . . 14 To Critical Strikes . | . . . . . . . . Average Slot Usage (%) 98 | . 98 99 98 99 100 99 92 Engine 10 | . 14 11 11 11 11 8 . Leg 39 | . 28 43 44 44 44 35 32 Device 2 | . 12 3 . . . . . Storage 10 | . 14 11 11 11 11 9 8 Processor 3 | . . . 9 6 . 5 1 Hackware 3 | . . . . 4 11 9 9 Protection 3 | . . 6 . . . 3 6 Energy Cannon 9 | . 16 8 11 11 11 9 6 Ballistic Gun 9 | . 9 12 11 4 . 9 8 Launcher 3 | . . . . 5 11 7 . Naked Turns . | . . . . . . . . Heaviest Build 33 | 12 20 26 21 23 23 33 27 Greatest Support 50 | 20 20 40 40 40 40 50 50 Greatest Overweight (x) 2 | . . . . . . . 2 Average Overweight (x) . | . . . . . . . . Largest Inventory Capacity 10 | 8 10 10 10 10 10 10 10 Average Capacity 9 | 7 9 10 10 10 10 10 9 Most Carried 10 | 5 10 10 9 10 10 10 10 Average Carried 7 | 1 7 8 7 9 9 9 8 Final Capacity 10 | 8 10 10 10 10 10 10 5 Final Carried 10 | 2 10 7 9 10 9 9 4 Class Distribution -------------------- 46% | Scavenger-Mutant 33% | Mutant 10% | Scavenger-Skirmisher 4% | Commander-Mutant 3% | Scavenger-Tank Dominant Class ---------------- Mutant | -10/Materials Scavenger-Mutant | -9/Materials Scavenger-Mutant | -9/Mines Scavenger-Mutant | -9/Exiles Commander-Mutant | -8/Mines Scavenger-Skirmisher | -8/Materials Scavenger-Mutant | -8/Garrison Resources | -11 -10 -9 -9 -9 -8 -8 -8 ----------- Run | Yrd Mat Mat Min Exi Min Mat Gar Matter Collected 1267 | 222 124 391 120 . 42 264 104 Remotely . | . . . . . . . . Salvage Created 1777 | . 124 691 207 . . 572 183 Parts 112 | . 6 51 7 . . 31 17 Haulers Intercepted . | . . . . . . . . Recyclers Shooed 2 | . . . . . . 2 . Parts Field Recycled . | . . . . . . . . Retrieved Matter . | . . . . . . . . Parts Self-Destructed . | . . . . . . . . Prevented . | . . . . . . . . Kills | -11 -10 -9 -9 -9 -8 -8 -8 ------- Run | Yrd Mat Mat Min Exi Min Mat Gar Combat Hostiles Destroyed 44 | . 3 18 2 . . 15 6 Melee 5 | . . . . . . . 5 Guns 20 | . 3 12 . . . 4 1 Cannons 17 | . . 6 2 . . 9 . AOE 2 | . . . . . . 2 . Classes Destroyed 7 | . 1 3 1 . . 2 . Worker 2 | . . . . . . 2 . Recycler 2 | . . . 1 . . 1 . Watcher 2 | . . 2 . . . . . Swarmer 18 | . . 7 1 . . 7 3 Grunt 14 | . 3 4 2 . . 4 1 Sentry 11 | . . 7 . . . 2 2 Hunter 2 | . . . . . . 2 . Best Kill Streak 6 | . 2 6 2 . . 5 3 Combat Bots Only 6 | . 2 6 2 . . 5 3 Max Kills in Single Turn 2 | . 1 1 1 . . 2 1 Gunslinging . | . . . . . . . . Exploded 1 | . . . . . . 1 . Melee 1 | . . . . . . . 1 Uniques/NPCs Destroyed . | . . . . . . . . Combat | -11 -10 -9 -9 -9 -8 -8 -8 -------- Run | Yrd Mat Mat Min Exi Min Mat Gar Hostile Shots Fired 375 | . 17 89 9 . . 73 187 Missed 85 | . 2 26 1 . . 22 34 Damage Taken 3569 | . 177 803 75 . . 622 1892 Core 645 | . 45 38 12 . . 96 454 Absorbed by Shields . | . . . . . . . . Ignored by Resistances 70 | . . . . . . . 70 Regen/Repaired (Parts) 246 | . . 158 . . . 88 . Core Remaining (%) 89 | 100 82 . . . 87 . . Volleys Fired 152 | . 15 69 8 5 . 42 13 Largest 3 | . 2 2 2 1 . 3 3 Hottest 124 | . 120 120 88 100 . 124 96 Shots Fired 293 | . 30 129 17 5 . 87 25 Gun 155 | . 14 70 8 . . 42 21 Cannon 130 | . 16 59 9 . . 42 4 Launcher 3 | . . . . . . 3 . Special 5 | . . . . 5 . . . Kinetic 147 | . 14 69 8 . . 42 14 Thermal 143 | . 16 60 9 5 . 42 11 Explosive 3 | . . . . . . 3 . Electromagnetic . | . . . . . . . . Robot Hit Streak 10 | . 8 10 3 . . 6 4 Robot Miss Streak 6 | . 2 6 3 . . 6 4 Penetration Max . | . . . . . . . . Secondary Targets . | . . . . . . . . Shots Hit Robots 168 | . 22 72 7 . . 47 20 Core Hits 84 | . 8 32 6 . . 32 6 Critical Kills . | . . . . . . . . Critical Parts Destroyed . | . . . . . . . . Critical Strikes 2 | . . . . . . . 2 Impale 2 | . . . . . . . 2 Melee Attacks 16 | . . . . . . . 16 Impact . | . . . . . . . . Slashing . | . . . . . . . . Piercing 16 | . . . . . . . 16 Sneak Attacks . | . . . . . . . . Combat Hostiles . | . . . . . . . . Follow-up Attacks . | . . . . . . . . Damage Inflicted 3070 | . 295 1066 191 . . 1113 405 Guns 1086 | . 103 496 70 . . 272 145 Cannons 1368 | . 192 543 121 . . 491 21 Explosions 322 | . . . . . . 322 . Melee 239 | . . . . . . . 239 Ramming 55 | . . 27 . . . 28 . Kinetic 1057 | . 103 496 70 . . 272 116 Thermal 1397 | . 192 543 121 . . 491 50 Explosive 322 | . . . . . . 322 . Electromagnetic . | . . . . . . . . Impact . | . . . . . . . . Slashing . | . . . . . . . . Piercing 239 | . . . . . . . 239 Highest Corruption 1 | . . 1 1 1 1 1 1 Average Corruption 1 | . . 1 1 1 1 1 1 Corruption Purged . | . . . . . . . . Corruption Blocked . | . . . . . . . . Effects 23 | . . 2 3 5 2 10 1 Message Errors 5 | . . . . 1 1 3 . Matter Fused 7 | . . 2 1 2 . 1 1 Heat Flow Errors 4 | . . . . 1 1 2 . Energy Discharges 1 | . . . . . . 1 . Data Loss (minor) 2 | . . . . 1 . 1 . Data Loss (major) 3 | . . . 1 . . 2 . Misfires 1 | . . . 1 . . . . Overload Shots . | . . . . . . . . Overflow Damage 51 | . . 2 . . . 31 18 Projectiles . | . . . . . . . . Explosions 31 | . . . . . . 31 . Melee 20 | . . 2 . . . . 18 Knockbacks 1 | . . 1 . . . . . Impact 1 | . . 1 . . . . . Kinetic . | . . . . . . . . Secondary . | . . . . . . . . Self-Inflicted Damage 2 | . . . . . . 2 . Shots 1 | . . . . . . 1 . Rammed . | . . . . . . . . Targets Rammed 9 | . . 5 . . . 4 . Kicked 9 | . . 5 . . . 4 . Crushed . | . . . . . . . . Highest Temperature 362 | . 85 252 125 213 170 192 362 Average Temperature 73 | . 34 72 53 50 91 42 179 Received Heat Transfer 1476 | . 102 258 18 . . 135 963 Effects 3 | . . 1 . . . . 2 Shutdowns 1 | . . . . . . . 1 Energy Bleed 1 | . . 1 . . . . . Interference 1 | . . . . . . . 1 Siege Activations . | . . . . . . . . Robots Corrupted . | . . . . . . . . Combat Hostiles . | . . . . . . . . Parts Fried . | . . . . . . . . Impact Corruptions 1 | . . 1 . . . . . Robots Melted . | . . . . . . . . Combat Hostiles . | . . . . . . . . Parts Melted 9 | . 1 4 . . . 4 . Heat Transferred 2775 | . 407 1147 222 . . 888 111 Parts Sabotaged . | . . . . . . . . Parts Stolen . | . . . . . . . . Parts Stripped . | . . . . . . . . Power Chain Reactions . | . . . . . . . . Alert | -11 -10 -9 -9 -9 -8 -8 -8 ------- Run | Yrd Mat Mat Min Exi Min Mat Gar Peak Influence 262 | . 114 244 220 . . 262 177 Initial 94 | . . . 94 . . . 72 Average 76 | . 29 100 175 . . 106 123 Maximum Alert Level 1 | . . 1 1 . . 1 . Low Security (%) 89 | 100 100 86 37 . 100 88 100 Level 1 10 | . . 13 62 . . 11 . Level 2 . | . . . . . . . . Level 3 . | . . . . . . . . Level 4 . | . . . . . . . . Level 5 . | . . . . . . . . High Security . | . . . . . . . . Max Security . | . . . . . . . . Squads Dispatched 6 | . 1 3 . . . 2 . Investigation 1 | . . 1 . . . . . Extermination . | . . . . . . . . Reinforcement 5 | . 1 2 . . . 2 . Assault . | . . . . . . . . Garrison . | . . . . . . . . Intercept . | . . . . . . . . Searches Triggered . | . . . . . . . . Construction Impeded 1 | . . . . . . 1 . Haulers Reinforced . | . . . . . . . . Active Scanning Responses . | . . . . . . . . Cargo Convoy Interrupts . | . . . . . . . . Stealth | -11 -10 -9 -9 -9 -8 -8 -8 --------- Run | Yrd Mat Mat Min Exi Min Mat Gar Distress Signals 8 | . . 4 . . . 4 . Communications Jammed . | . . . . . . . . Distress Signals . | . . . . . . . . Times Spotted 88 | . 8 32 6 . . 26 16 Peak Tracking Total 9 | . 3 6 3 . . 4 9 Tactical Retreats 2 | . . 1 . . . 1 . Traps | -11 -10 -9 -9 -9 -8 -8 -8 ------- Run | Yrd Mat Mat Min Exi Min Mat Gar Traps Triggered 5 | . . 3 . . . 1 1 Indirectly . | . . . . . . . . Trap Hack Attempts . | . . . . . . . . Triggered . | . . . . . . . . Disarmed . | . . . . . . . . Reprogrammed . | . . . . . . . . Reused . | . . . . . . . . Traps Extracted . | . . . . . . . . Installed . | . . . . . . . . Triggered . | . . . . . . . . Machines | -11 -10 -9 -9 -9 -8 -8 -8 ---------- Run | Yrd Mat Mat Min Exi Min Mat Gar Machines Disabled 2 | . 1 . . . . 1 . Max in Single Turn 1 | . 1 . . . . 1 . Machines Repaired . | . . . . . . . . Machines Dismantled . | . . . . . . . . Machines Sabotaged . | . . . . . . . . Overloaded Fab Kills . | . . . . . . . . Hacking | -11 -10 -9 -9 -9 -8 -8 -8 --------- Run | Yrd Mat Mat Min Exi Min Mat Gar Machines Accessed 20 | . 2 10 . 1 . 7 . Terminals 13 | . 2 7 . . . 4 . Fabricators . | . . . . . . . . Repair Stations 2 | . . 1 . . . 1 . Recycling Units 1 | . . 1 . . . . . Scanalyzers 2 | . . 1 . . . 1 . Garrison Access 1 | . . . . . . 1 . Total Hacks 74 | . 7 26 . 16 . 25 . Successful 51 | . 3 13 . 16 . 19 . Failed 23 | . 4 13 . . . 6 . Catastrophic 2 | . . 1 . . . 1 . Database Lockouts . | . . . . . . . . Manual . | . . . . . . . . Terminals 37 | . 7 15 . . . 15 . Fabricators . | . . . . . . . . Repair Stations 15 | . . 9 . . . 6 . Recycling Units 1 | . . 1 . . . . . Scanalyzers 3 | . . 1 . . . 2 . Garrison Access 2 | . . . . . . 2 . Terminal Hacks 37 | . 3 8 . 16 . 10 . Record 16 | . . . . 16 . . . Emergency Access Points 3 | . . 2 . . . 1 . Alert Level 6 | . . 2 . . . 4 . Unreport Threat 2 | . . . . . . 2 . Locate Traps 3 | . 1 1 . . . 1 . Dispatch Records 2 | . 1 1 . . . . . Security Status 1 | . . . . . . 1 . Transport Status 1 | . . . . . . 1 . Recall Reinforcements 1 | . . 1 . . . . . Hauler Manifests 1 | . . 1 . . . . . Zone Layout 1 | . 1 . . . . . . Fabricator Hacks . | . . . . . . . . Repair Station Hacks 11 | . . 5 . . . 6 . Scan Component 6 | . . 3 . . . 3 . Repair 5 | . . 2 . . . 3 . Recycling Unit Hacks . | . . . . . . . . Scanalyzer 2 | . . . . . . 2 . Insert Component 1 | . . . . . . 1 . Analyze 1 | . . . . . . 1 . Garrison Access Hacks 1 | . . . . . . 1 . Unlock Access 1 | . . . . . . 1 . Unauthorized Hacks . | . . . . . . . . Terminals . | . . . . . . . . Fabricators . | . . . . . . . . Repair Stations . | . . . . . . . . Recycling Units . | . . . . . . . . Scanalyzers . | . . . . . . . . Garrison Access . | . . . . . . . . Data Cores Recovered . | . . . . . . . . Used . | . . . . . . . . Hacking Detections 17 | . 2 9 . . . 6 . Full Trace Events 2 | . . 1 . . . 1 . Feedback Events . | . . . . . . . . Feedback Blocked . | . . . . . . . . Robot Schematics Acquired . | . . . . . . . . Robots Built . | . . . . . . . . Authchips . | . . . . . . . . Time . | . . . . . . . . Total Robot Build Rating . | . . . . . . . . Part Schematics Acquired 1 | . . . . . . 1 . Parts Built . | . . . . . . . . Authchips . | . . . . . . . . Time . | . . . . . . . . Total Part Build Rating . | . . . . . . . . Parts Repaired 5 | . . 2 . . . 3 . Time 154 | . . 52 . . . 102 . Parts Recycled . | . . . . . . . . Recycled Matter . | . . . . . . . . Retrieved Matter . | . . . . . . . . Retrieved Components . | . . . . . . . . Parts Scanalyzed 1 | . . . . . . 1 . Part Schematics Acquired 1 | . . . . . . 1 . Parts Damaged 1 | . . . . . . 1 . Bothacking | -11 -10 -9 -9 -9 -8 -8 -8 ------------ Run | Yrd Mat Mat Min Exi Min Mat Gar Used RIF Installer . | . . . . . . . . Robots Hacked . | . . . . . . . . Non-combat . | . . . . . . . . Combat . | . . . . . . . . Robot Hacks Applied . | . . . . . . . . Relay Couplers Released . | . . . . . . . . Fabnet Peak Effective % . | . . . . . . . . Robots Rewired 4 | . . . . 4 . . . Allies Hacked . | . . . . . . . . Hacks Repelled . | . . . . . . . . Allies | -11 -10 -9 -9 -9 -8 -8 -8 -------- Run | Yrd Mat Mat Min Exi Min Mat Gar Total Allies 7 | . . . 3 4 . . . Largest Group 5 | . . . 3 5 5 5 . Highest-Rated Group 61 | . . . 40 61 61 61 . Highest-Rated Ally 21 | . . . 16 21 21 21 . Total Orders 1 | . . . 1 . . . . GUARD 1 | . . . 1 . . . . Ally Attacks 42 | . . . 15 . . 27 . Total Damage 541 | . . . 153 . . 388 . Kills 8 | . . . 4 . . 4 . Allies Corrupted . | . . . . . . . . Allies Melted . | . . . . . . . . Intel | -11 -10 -9 -9 -9 -8 -8 -8 ------- Run | Yrd Mat Mat Min Exi Min Mat Gar Robot Analysis Total . | . . . . . . . . Derelict Logs Recovered 1 | . . . 1 . . . . Drone Launches . | . . . . . . . . Drone Recoveries . | . . . . . . . . Exploration | -11 -10 -9 -9 -9 -8 -8 -8 ------------- Run | Yrd Mat Mat Min Exi Min Mat Gar Turns Passed 5499 | 963 449 1559 301 718 224 987 298 Spaces Moved 3237 | 203 311 1025 226 552 186 570 164 Core 24 | 12 . . . . . . 12 Treads 9 | 9 . . . . . . . Legs 3204 | 182 311 1025 226 552 186 570 152 Wheels . | . . . . . . . . Hover . | . . . . . . . . Flight . | . . . . . . . . Fastest Speed 50 | 50 120 120 120 120 120 120 50 Average Speed 119 | 117 120 120 120 120 120 120 119 Slowest Speed 190 | 160 120 120 120 120 120 120 190 Overloaded Moves . | . . . . . . . . Propulsion Burnouts . | . . . . . . . . Robots Hopped . | . . . . . . . . Cave-ins Triggered . | . . . . . . . . Exploration Rate (%) 45 | 23 41 61 33 88 52 44 23 Regions Visited 7 Branch Regions 3 Pre-discovered Areas 1 | . . . . 1 . . . Known Exits Taken 2 | . . . 1 . . 1 . Unknown Exits Taken 5 | 1 1 1 . 1 1 . . Scrap Searched 2 | . . . . . 2 . . Spaces Dug . | . . . . . . . . Terrain Destroyed 39 | . . . . . . 39 . Melee . | . . . . . . . . Projectile . | . . . . . . . . AOE 39 | . . . . . . 39 . Terrain Rammed . | . . . . . . . . Walls Destroyed . | . . . . . . . . Machines Disabled . | . . . . . . . . Actions | -11 -10 -9 -9 -9 -8 -8 -8 --------- Run | Yrd Mat Mat Min Exi Min Mat Gar Total 4571 | 927 361 1240 239 594 188 796 226 Wait 930 | 706 12 71 . . . 128 13 Move 3230 | 202 310 1024 225 551 185 569 164 Hop . | . . . . . . . . Pick Up 70 | 9 11 20 3 3 1 20 3 Fast Attach . | . . . . . . . . Attach 54 | 7 4 19 1 3 . 8 12 Detach 22 | 1 3 9 . 3 . 2 4 Swap 22 | 1 4 6 2 . . 9 . Drop 38 | 1 2 17 . 1 2 14 1 Fire 152 | . 15 69 8 5 . 42 13 Melee 16 | . . . . . . . 16 Ram . | . . . . . . . . Kick 9 | . . 5 . . . 4 . Crush . | . . . . . . . . Escape Stasis . | . . . . . . . . Rewire 28 | . . . . 28 . . . Trap . | . . . . . . . . Miscellaneous . | . . . . . . . . Route ------- -11/Scrapyard -10/Materials -9/Materials -9/Mines -9/Exiles -8/Mines -8/Materials (discovered 2 exits: [*Fac] / Gar) -8/Garrison History --------- Turn | Location | Event 22 | -11/Scrapyard | Discovered new exit (range 16) 964 | -11/Scrapyard | Entered Materials 965 | -10/Materials | Build established: Mutant 1107 | -10/Materials | Discovered new exit (range 10) 1413 | -10/Materials | Entered another Materials area 1413 | -9/Materials | Evolved 2 slots: Propulsion x2 1835 | -9/Materials | Build established: Scavenger-Mutant 2765 | -9/Materials | Repaired Aluminum Leg 2805 | -9/Materials | Repaired Aluminum Leg 2934 | -9/Materials | Discovered new exit (range 7) 2972 | -9/Materials | Entered Mines 2980 | -9/Mines | Assisted by bots powering up and referring to "LRC-V3" 3174 | -9/Mines | Received a Rocket Launcher from a helpful Derelict 3242 | -9/Mines | Learned Materials interactive machine intel 3265 | -9/Mines | Deemed a non-threat by the Exiles lab entrance 3266 | -9/Mines | Discovered new exit (range 5) 3271 | -9/Mines | Identified exit to Exiles 3273 | -9/Mines | Entered Exiles 3273 | -9/Exiles | Found Exiles lab destroyed 3273 | -9/Exiles | Accompanied by 1 ally 3458 | -9/Exiles | Learned location of Zion (-7) 3975 | -9/Exiles | Discovered new exit (range 10) 3991 | -9/Exiles | Entered Mines 3991 | -8/Mines | Accompanied by 5 allies 4161 | -8/Mines | Discovered new exit (range 15) 4215 | -8/Mines | Entered Materials 4215 | -8/Materials | Accompanied by 5 allies 4215 | -8/Materials | Evolved 2 slots: Utility x1, Weapon x1 4216 | -8/Materials | Loaded intel: 18 interactive machine locations 4462 | -8/Materials | Discovered new exit (range 3) 4540 | -8/Materials | Build established: Scavenger-Skirmisher 4631 | -8/Materials | Lost 3 allies 5103 | -8/Materials | Repaired Lgt. Nuclear Core 5130 | -8/Materials | Repaired Aluminum Leg 5169 | -8/Materials | Repaired Carbon-fiber Leg 5199 | -8/Materials | Identified exit to Garrison 5202 | -8/Materials | Entered Garrison 5274 | -8/Garrison | Triggered checkpoint 5418 | -8/Garrison | Triggered checkpoint 5446 | -8/Garrison | Triggered checkpoint 5467 | -8/Garrison | Triggered checkpoint 5482 | -8/Garrison | Core integrity fell below 50% 5492 | -8/Garrison | Core integrity fell below 20% 5500 | -8/Garrison | Destroyed by G-47 Trooper with Particle Gun Last Messages --------------- Lgt. Nuclear Core destroyed. Beams of light sweep through the air. An alarm sounds. Assault Rifle destroyed. Critical hit (Burn: +37). Aluminum Leg destroyed. Power failure, Ion Engine shutdown. Overheating: System interference. Beam Rifle temporarily disabled. Carbon-fiber Leg destroyed. Assault Rifle destroyed. Mak. Spear destroyed. Lyr. Light Armor Plating destroyed. Aluminum Leg destroyed. Dropped Med. Storage Unit. Ion Engine destroyed. Acquired Lgt. Nuclear Core. Critical hit (Burn: +37). Lgt. Nuclear Core destroyed. Critical hit (Burn: +37). Map ----- +----------------------------------------------------+ | ?????????????????????????????????????????????????? | | ?????????????????????????????????????????????????? | | ?????????????????????????????????????????????????? | | ?????????????????????????????????????????????????? | | ?????????????????????????????????????????????????? | | ?????????????????????????????????????????????????? | | ?????????????????????????????????????????????????? | | ?????????????????????????????????????????????????? | | ?????????????????????????????????????????????????? | | ?????????????????????????????????????????????????? | | ?????????????????????????????????????????????????? | | ?????????????????????????????????????????????????? | | ?????????????????????????????????????????????????? | | ?????????????????????????????????????????????????? | | ?????????????????????????????????????????????????? | | ???????????????????????#####?????????????????????? | | ???????????????????????# ?????????????????????? | | ???????????????????????# ?????????????????????? | | ???????????????????????# ?????????????????????? | | ???????????????????????# #?????????????????????? | | ???????????????????????# #?????????????????????? | | ???????????????????????# #?????????????????????? | | ???????????????????????# #?????????????????????? | | ???????????????????????# #?????????????????????? | | ???????????????????????# #?????????????????????? | | ?????????????# ????????# @ #?????????????????????? | | ????????????## ##""""## #?????????????????????? | | ????????????# #?????????????????????? | | ?????????? #?????????????????????? | | ?????????? #?????????????????????? | | ???????????## ## ## #?????????????????????? | | ???????????## ## ## ###???????????????????? | | ??????????# s #???????????????????? | | ??????????# #???????????????????? | | ??????????# sssgg #???????????????????? | | ??????????# g g #???????????????????? | | ???????????## ## ## %!###???????????????????? | | ????????????# ??# ## [ ############???????###? | | ???????????? ! #??????# #? | | ???????????? #?????##++## | | ???????????? #?????#!!!!# | | ???????????####### ############# #?????#! !# | | ?????????????????# ????????????# #?????#! !# | | ?????????????????####?????????????# #?????#! !# | | ??????????????????????????????????# #?????# !=!# | | ??????????????????????????????????# #?????##!%## | | ??????????????????????????????????# #??????# !#? | | ??????????????????????????????????# ########%=#? | | ??????????????????????????????????# [ !=#? | | ??????????????????????????????????# =* #? | +----------------------------------------------------+ Best States ------------- Heat Dissipation 38 Energy Generation 14 Energy Capacity 265 Matter Stores 300 Matter Capacity 300 Sight Range 20 Terrain Scan Density 10 Additional Mass Support 9 Armor Coverage 225 Resistance: KI 30 Evasion (%) 55 Targeting Accuracy 5 Melee Accuracy 5 Recoil Reduction 1 Offensive Hacking 11 Item Schematics ----------------- Aluminum Leg | -8/Materials | Scanalyzed Robot Schematics ------------------ None Fabricated ------------ Nothing Alien Tech Used ----------------- None Achievements -------------- A New Friend GoHome() The More The Merrier Challenges ------------ None Game ------ Seed BarragePrecisionReactor Manual? 0 Play Time 00:46:02 Cumulative 11.6 hours Start 2024.06.16 @ 12:12:00 End 2024.06.16 @ 12:57:29 Sessions 1 Manual Loads 0 Difficulty Rogue Special Mode None Game No. 14 Rogue 14 Adventurer 0 Explorer 0 Win Type - Total 0 Types 0/0/0/0/0/0/0/0/0 Lore% 15 Gallery% 20 Achievement% 15 Wizard Run 0 Options --------- Layout 1 ASCII 0 Keyboard 1 Movement Arrows Keybinds 0 Fullscreen 1 Font 24/Smallcaps Map View 50x35 Zoom Use 0% Tactical HUD 0 Map Filters NONE Filters NONE Steam 1 RUN: 9b5ee13e-df6d-4e1d-a389-e76b3d3928ac